bitfinex/quotes_SOLUSD_20250630
["timestamp","ask_amount","ask_price","bid_price","bid_amount"]
[1751284004147,32.63013855,150.83,150.79,92.20324721]
[1751284004350,37.23338576,150.83,150.79,92.20324721]
[1751284006958,32.63013855,150.83,150.79,98.83493192]
[1751284007148,37.23338576,150.83,150.79,98.83493192]
[1751284007652,11.23338576,150.83,150.79,98.83493192]
[1751284009161,37.23338576,150.83,150.79,87.6]
[1751284009369,4.60324721,150.81,150.79,87.6]
[1751284010557,4.60324721,150.82,150.79,87.6]
[1751284011441,4.60324721,150.81,150.79,87.6]
[1751284013257,4.60324721,150.81,150.77,11.23586611]
[1751284013258,11.23411986,150.81,150.77,98.83586611]
[1751284014650,6.63042036,150.82,150.77,98.83586611]
[1751284014837,4.60324721,150.81,150.77,92.20324721]
[1751284015456,4.60324721,150.81,150.77,87.6]
[1751284016049,11.23439398,150.81,150.77,87.6]
[1751284016252,4.60324721,150.8,150.77,87.6]
[1751284016641,4.60324721,150.79,150.77,87.6]
[1751284018144,11.23518529,150.79,150.77,87.6]
[1751284018464,11.23518529,150.79,150.75,97.86324721]
[1751284020265,11.23518529,150.79,150.75,93.26]
[1751284023145,0.28432314,150.81,150.76,4.60324721]
[1751284023448,4.60324721,150.8,150.76,4.60324721]
[1751284023961,4.60324721,150.8,150.75,104.49664481]
[1751284024868,11.2346129,150.8,150.76,4.60324721]
[1751284025771,9.57888187,150.8,150.76,2.94751618]
[1751284029776,9.57888187,150.8,150.76,9.58050249]
[1751284030077,26.0,150.82,150.79,2.94751618]
[1751284030262,9.57777284,150.83,150.79,2.94751618]
[1751284030653,9.57777284,150.83,150.76,6.63298631]
[1751284030654,9.57777284,150.83,150.78,2.94751618]
[1751284030857,2.94751618,150.82,150.77,2.94751618]
[1751284031162,2.94751618,150.81,150.76,9.58050249]
[1751284031554,9.57840703,150.81,150.76,9.58050249]
[1751284031873,11.23613429,150.81,150.76,11.23822975]
[1751284032376,11.23613429,150.81,150.77,4.60524344]
[1751284033291,11.23613429,150.81,150.77,11.23773325]
[1751284034078,11.23613429,150.81,150.77,98.83773325]
[1751284035981,11.23613429,150.81,150.77,87.6]
[1751284036281,11.23613429,150.81,150.77,92.20524344]
[1751284036861,6.63089085,150.81,150.77,98.83782001]
[1751284037189,11.23613429,150.81,150.77,98.83782001]
[1751284040179,11.23613429,150.81,150.77,87.6]
[1751284040371,11.23613429,150.81,150.77,92.20524344]
[1751284043488,11.33613429,150.81,150.77,92.20524344]
[1751284044370,11.33613429,150.81,150.77,87.6]
[1751284047377,4.60524344,150.79,150.77,87.6]
[1751284047585,4.60524344,150.78,150.77,87.6]
[1751284047886,1.5096,150.8,150.77,87.6]
[1751284048092,4.60524344,150.79,150.77,87.6]
[1751284048881,6.6317395,150.79,150.77,87.6]
[1751284051594,6.6317395,150.79,150.75,97.86524344]
[1751284051791,6.6317395,150.79,150.75,96.20783045]
[1751284054882,9.67903232,150.81,150.77,2.94783045]
[1751284055200,9.67903232,150.81,150.76,2.94783045]
[1751284055394,9.67903232,150.81,150.77,2.94783045]
[1751284055582,9.67903232,150.81,150.75,99.89347007]
[1751284055583,9.67903232,150.81,150.76,2.94783045]
[1751284055782,9.67903232,150.81,150.76,9.58065675]
[1751284055980,2.94783045,150.8,150.75,102.84115279]
[1751284057501,9.5795436,150.8,150.75,102.84115279]
[1751284057680,6.63171315,150.8,150.75,102.84115279]
[1751284057999,9.5795436,150.8,150.75,102.84115279]
[1751284058400,9.5795436,150.8,150.76,2.94783045]
[1751284059486,9.5795436,150.8,150.75,102.84115279]
[1751284059981,9.6795436,150.8,150.75,102.84115279]
[1751284064105,9.6795436,150.8,150.75,96.20783045]
[1751284067885,2.48308655,150.79,150.75,96.20783045]
[1751284068183,2.48308655,150.78,150.75,96.20783045]
[1751284068502,9.6795436,150.8,150.75,96.20783045]
[1751284068705,5.43087371,150.79,150.75,93.26]
[1751284068906,2.48304326,150.78,150.75,93.26]
[1751284069091,2.94783045,150.79,150.75,93.26]
[1751284069292,2.48299881,150.78,150.75,93.26]
[1751284069604,2.94783045,150.79,150.75,93.26]
[1751284069903,2.48299881,150.78,150.75,93.26]
[1751284070105,2.94783045,150.79,150.75,93.26]
[1751284070298,2.48295532,150.78,150.75,93.26]
[1751284070499,2.94783045,150.77,150.75,87.6]
[1751284070690,5.43108009,150.76,150.71,102.82293468]
[1751284070898,2.48329191,150.75,150.71,102.82293468]
[1751284071132,2.94783045,150.76,150.71,96.18783045]
[1751284071292,5.43048642,150.75,150.71,96.18783045]
[1751284071500,2.94783045,150.76,150.71,96.18783045]
[1751284071699,2.48265648,150.75,150.71,96.18783045]
[1751284072005,2.94783045,150.76,150.71,96.18783045]
[1751284072208,2.48265597,150.75,150.71,96.18783045]
[1751284072396,2.94783045,150.76,150.71,102.82308433]
[1751284072597,2.48194409,150.75,150.72,2.94783045]
[1751284072909,9.58129022,150.76,150.72,2.94783045]
[1751284073106,2.48194409,150.75,150.72,2.94783045]
[1751284073304,9.58129022,150.76,150.72,2.94783045]
[1751284073504,2.48133874,150.75,150.72,2.94783045]
[1751284073811,9.58129022,150.76,150.72,2.94783045]
[1751284074106,2.48133874,150.75,150.71,99.87525388]
[1751284074292,9.58129022,150.76,150.72,2.94783045]
[1751284074691,9.58129022,150.76,150.71,99.87525388]
[1751284074891,9.58129022,150.76,150.72,2.94783045]
[1751284075301,3.649,150.75,150.73,2.94783045]
[1751284077202,3.649,150.75,150.73,9.58209643]
[1751284079214,3.649,150.75,150.74,2.94783045]
[1751284081106,3.649,150.75,150.74,97.18176968]
[1751284081819,3.649,150.75,150.74,94.23393923]
[1751284082113,3.649,150.75,150.74,90.54783045]
[1751284087927,3.649,150.75,150.74,87.6]
[1751284088113,3.649,150.75,150.74,90.54783045]
[1751284089740,3.649,150.75,150.74,87.6]
[1751284090028,3.649,150.75,150.74,90.54783045]
[1751284093025,3.649,150.75,150.74,97.18176968]
[1751284093733,3.749,150.75,150.74,97.18176968]
[1751284094933,3.749,150.75,150.74,90.54783045]
[1751284097323,3.749,150.75,150.74,87.6]
[1751284106538,3.749,150.75,150.74,90.54783045]
[1751284111261,3.749,150.75,150.74,87.6]
[1751284117961,3.749,150.75,150.74,90.54783045]
[1751284118647,3.749,150.75,150.74,87.6]
[1751284120652,6.69683045,150.75,150.74,87.6]
[1751284120857,13.33032962,150.75,150.74,87.6]
[1751284121742,3.749,150.75,150.74,87.6]
[1751284122654,3.749,150.75,150.72,96.18783045]
[1751284123166,3.749,150.75,150.73,6.63432153]
[1751284123544,3.749,150.75,150.72,102.82252639]
[1751284127667,3.749,150.75,150.72,99.87469594]
[1751284127870,3.749,150.75,150.72,102.82252639]
[1751284134279,3.749,150.75,150.72,99.87469594]
[1751284134575,3.749,150.75,150.72,102.82252639]
[1751284137355,6.69683045,150.75,150.72,93.24]
[1751284137760,3.749,150.75,150.72,87.6]
[1751284138480,3.749,150.75,150.72,90.54783045]
[1751284141182,3.749,150.75,150.72,87.6]
[1751284142885,3.749,150.75,150.72,94.23479571]
[1751284143187,3.749,150.75,150.72,97.18262616]
[1751284144387,3.749,150.75,150.72,87.6]
[1751284147673,3.749,150.75,150.72,94.23479925]
[1751284148201,3.749,150.75,150.72,87.6]
[1751284149286,3.749,150.75,150.72,97.18263052]
[1751284154089,3.749,150.75,150.72,94.23480007]
[1751284155293,3.749,150.75,150.72,97.18263052]
[1751284157502,3.749,150.75,150.72,87.6]
[1751284158806,10.38249994,150.75,150.72,87.6]
[1751284162783,3.749,150.75,150.72,87.6]
[1751284164295,3.749,150.75,150.72,94.2348161]
[1751284166484,3.749,150.75,150.72,97.18264655]
[1751284169809,3.749,150.75,150.72,94.2348161]
[1751284170107,4.97083756,150.74,150.72,94.2348161]
[1751284170302,4.97083756,150.73,150.72,94.2348161]
[1751284170490,4.97083756,150.73,150.72,87.6]
[1751284178414,4.97083756,150.73,150.72,90.54783045]
[1751284178717,3.749,150.75,150.72,90.54783045]
[1751284178921,4.97103147,150.74,150.72,90.54783045]
[1751284179218,3.749,150.75,150.72,90.54783045]
[1751284179521,4.97111116,150.74,150.72,90.54783045]
[1751284179818,3.749,150.75,150.72,90.54783045]
[1751284179996,4.97111116,150.74,150.72,90.54783045]
[1751284180202,3.749,150.75,150.72,90.54783045]
[1751284180502,4.97119518,150.74,150.72,87.6]
[1751284180703,3.749,150.75,150.72,87.6]
[1751284180917,4.97119518,150.74,150.72,87.6]
[1751284181222,3.749,150.75,150.72,87.6]
[1751284181422,4.97128333,150.74,150.72,87.6]
[1751284181609,3.749,150.75,150.72,87.6]
[1751284181920,4.97128333,150.74,150.72,87.6]
[1751284182102,3.749,150.75,150.72,87.6]
[1751284182302,4.97137889,150.74,150.72,87.6]
[1751284182503,3.749,150.75,150.72,87.6]
[1751284182702,4.97137991,150.74,150.72,87.6]
[1751284183002,3.749,150.75,150.72,87.6]
[1751284183205,4.97137889,150.74,150.72,87.6]
[1751284183398,3.749,150.75,150.72,87.6]
[1751284183598,4.97132688,150.74,150.72,87.6]
[1751284183818,3.749,150.75,150.72,87.6]
[1751284184106,4.9713279,150.74,150.72,87.6]
[1751284184305,3.749,150.75,150.72,87.6]
[1751284184503,4.97123074,150.74,150.72,87.6]
[1751284184708,3.749,150.75,150.72,87.6]
[1751284184905,4.97123074,150.74,150.72,87.6]
[1751284185112,3.749,150.75,150.72,94.23480404]
[1751284185420,4.97116996,150.74,150.72,94.23480404]
[1751284185613,3.749,150.75,150.72,94.23480404]
[1751284185812,4.97113928,150.74,150.72,94.23480404]
[1751284186014,3.749,150.75,150.72,94.23480404]
[1751284186322,4.97114031,150.74,150.72,94.23480404]
[1751284186522,3.749,150.75,150.72,94.23480404]
[1751284186821,4.97105159,150.74,150.72,94.23480404]
[1751284187023,3.749,150.75,150.72,94.23480404]
[1751284187325,4.97105261,150.74,150.72,94.23480404]
[1751284187493,3.749,150.75,150.72,94.23480404]
[1751284187693,4.97096916,150.74,150.72,94.23480404]
[1751284187919,3.749,150.75,150.72,94.23480404]
[1751284188122,4.97096916,150.74,150.72,94.23480404]
[1751284188324,3.749,150.75,150.72,94.23480404]
[1751284188525,4.97088952,150.74,150.72,94.23480404]
[1751284188725,3.749,150.75,150.72,94.23480404]
[1751284188928,4.97088952,150.74,150.72,94.23480404]
[1751284189101,3.749,150.75,150.72,94.23480404]
[1751284189298,4.970853,150.74,150.72,94.23480404]
[1751284189497,3.749,150.75,150.72,94.23480404]
[1751284189702,4.97081409,150.74,150.72,94.23480404]
[1751284189898,3.749,150.75,150.72,94.23480404]
[1751284190203,4.97081409,150.74,150.72,94.23480404]
[1751284190721,3.749,150.75,150.72,94.23480404]
[1751284190923,3.749,150.75,150.72,87.6]
[1751284192325,4.97090779,150.74,150.72,87.6]
[1751284192528,3.749,150.75,150.72,87.6]
[1751284192823,4.97095531,150.74,150.72,87.6]
[1751284193028,3.749,150.75,150.72,87.6]
[1751284193325,4.97095531,150.74,150.72,87.6]
[1751284193523,3.749,150.75,150.71,9.58289636]
[1751284193738,4.97096049,150.74,150.71,9.58289636]
[1751284194034,3.749,150.75,150.71,9.58289636]
[1751284194226,4.97096049,150.74,150.71,9.58289636]
[1751284194532,3.749,150.75,150.71,9.58289636]
[1751284194719,4.97096694,150.74,150.71,9.58289636]
[1751284194907,3.749,150.75,150.71,9.58289636]
[1751284195111,4.97096694,150.74,150.71,9.58289636]
[1751284195410,3.749,150.75,150.71,9.58289636]
[1751284195706,4.97097159,150.74,150.71,9.58289636]
[1751284196005,3.749,150.75,150.71,9.58289636]
[1751284196202,4.97097261,150.74,150.71,9.58289636]
[1751284196430,3.749,150.75,150.71,9.58289636]
[1751284196631,4.97097755,150.74,150.71,9.58289636]
[1751284196835,3.749,150.75,150.71,9.58289636]
[1751284197018,4.97097858,150.74,150.71,9.58289636]
[1751284197220,3.749,150.75,150.71,9.58289636]
[1751284197429,4.97106625,150.74,150.71,9.58289636]
[1751284197635,3.749,150.75,150.71,9.58289636]
[1751284197827,4.97106625,150.74,150.71,9.58289636]
[1751284198026,3.749,150.75,150.71,9.58289636]
[1751284198228,4.97106523,150.74,150.71,9.58289636]
[1751284198534,3.749,150.75,150.73,2.94783045]
[1751284199230,3.749,150.75,150.73,9.58212251]
[1751284199535,3.749,150.75,150.73,97.18212251]
[1751284200113,4.97049567,150.74,150.73,97.18212251]
[1751284200312,3.749,150.75,150.73,90.54783045]
[1751284204638,3.749,150.75,150.73,87.6]
[1751284205229,3.749,150.75,150.73,97.18220947]
[1751284205711,3.749,150.75,150.74,2.94783045]
[1751284206536,3.749,150.75,150.74,9.58176968]
[1751284207335,3.749,150.75,150.74,2.94783045]
[1751284211346,3.749,150.75,150.74,90.54783045]
[1751284214646,3.749,150.75,150.74,97.18176968]
[1751284223134,3.749,150.75,150.74,9.58176968]
[1751284228251,3.749,150.75,150.74,28.23141854]
[1751284228944,3.749,150.75,150.74,115.83141854]
[1751284233359,0.1,150.79,150.75,102.50064886]
[1751284233666,0.1,150.79,150.78,2.94783045]
[1751284234453,0.1,150.79,150.78,9.58000978]
[1751284237845,0.1,150.79,150.78,93.43100978]
[1751284240145,0.1,150.79,150.78,112.08065864]
[1751284258705,0.1,150.8,150.79,102.40064886]
[1751284259013,0.1,150.8,150.79,105.34847931]
[1751284259691,0.1,150.8,150.79,135.34847931]
[1751284259871,0.1,150.8,150.79,141.98021881]
[1751284264302,0.1,150.8,150.79,111.98021881]
[1751284264469,0.1,150.8,150.79,124.05586375]
[1751284264673,0.1,150.8,150.79,112.26454195]
[1751284265477,0.1,150.8,150.79,142.26454195]
[1751284266169,0.1,150.8,150.79,206.79586375]
[1751284267575,0.1,150.81,150.8,18.933972]
[1751284267778,0.1,150.81,150.8,63.67312425]
[1751284269488,0.1,150.81,150.8,70.30442398]
[1751284270372,0.1,150.81,150.8,154.05542398]
[1751284271325,0.1,150.82,150.81,128.30064886]
[1751284271602,0.1,150.84,150.83,21.59747931]
[1751284271772,0.1,150.84,150.83,110.84847931]
[1751284271979,0.1,150.84,150.83,137.85280245]
[1751284272395,0.1,150.86,150.84,18.64964886]
[1751284272707,0.1,150.86,150.85,2.94783045]
[1751284273282,0.1,150.86,150.85,28.22658106]
[1751284273983,0.1,150.86,150.85,58.22658106]
[1751284276272,0.1,150.86,150.85,141.87758106]
[1751284279126,0.1,150.86,150.85,90.28010175]
[1751284279498,0.1,150.86,150.85,93.2279322]
[1751284280094,0.1,150.86,150.85,90.28010175]
[1751284280502,0.1,150.86,150.85,83.651]
[1751284282206,0.1,150.86,150.84,100.48102905]
[1751284284302,0.1,150.86,150.85,4.60064667]
[1751284285215,0.1,150.86,150.85,11.22974842]
[1751284290438,0.1,150.86,150.84,100.48098979]
[1751284290633,0.1,150.86,150.84,89.251]
[1751284291128,0.1,150.86,150.84,83.651]
[1751284291340,6.12834667,150.85,150.81,83.651]
[1751284291704,4.60064667,150.84,150.8,16.83180403]
[1751284291898,4.60064667,150.84,150.81,30.0]
[1751284292120,4.60064667,150.84,150.8,16.83180403]
[1751284293233,11.23021107,150.84,150.8,16.83180403]
[1751284293624,11.23021107,150.84,150.8,5.6]
[1751284297040,6.6295644,150.84,150.8,5.6]
[1751284297238,11.23021107,150.84,150.8,5.6]
[1751284297829,11.23021107,150.84,150.8,10.20064667]
[1751284298336,4.60064667,150.83,150.8,5.6]
[1751284298540,4.60064667,150.82,150.78,10.20064667]
[1751284298739,4.60064667,150.82,150.78,93.85164667]
[1751284300043,11.23117839,150.82,150.78,93.85164667]
[1751284300835,11.23117839,150.82,150.78,100.48379684]
[1751284302046,4.60064667,150.82,150.78,100.48379684]
[1751284302959,7.9826,150.85,150.81,4.60064667]
[1751284303149,7.9826,150.85,150.82,4.60064667]
[1751284304038,14.61178174,150.85,150.82,4.60064667]
[1751284304535,14.61178174,150.85,150.81,4.60064667]
[1751284304937,14.61178174,150.85,150.79,90.28242682]
[1751284304938,19.21242841,150.85,150.79,90.28242682]
[1751284305139,19.21242841,150.85,150.8,4.60064667]
[1751284311855,11.2305124,150.84,150.8,4.60064667]
[1751284312631,11.2305124,150.84,150.79,94.88307349]
[1751284317352,14.61190926,150.85,150.8,4.60064667]
[1751284317558,14.61190926,150.85,150.81,4.60064667]
[1751284318844,14.61190926,150.85,150.79,90.28242682]
[1751284318845,7.9826,150.85,150.82,4.60064667]
[1751284322561,19.2124559,150.85,150.8,94.8828967]
[1751284324560,4.60064667,150.83,150.8,83.651]
[1751284325765,11.23105306,150.83,150.8,83.651]
[1751284326641,11.23105306,150.83,150.79,4.60064667]
[1751284327867,11.23105306,150.83,150.78,100.48357931]
[1751284328372,11.23105306,150.83,150.79,4.60064667]
[1751284330666,11.53105306,150.83,150.79,4.60064667]
[1751284330868,6.93040639,150.83,150.79,4.60064667]
[1751284332368,0.3,150.83,150.79,11.2323551]
[1751284332571,0.3,150.83,150.8,4.60064667]
[1751284332866,0.3,150.83,150.81,4.60064667]
[1751284333769,0.3,150.83,150.81,2.94580264]
[1751284334175,0.3,150.83,150.8,9.57670663]
[1751284335882,0.3,150.83,150.8,4.60289691]
[1751284336946,0.3,150.83,150.8,11.23381913]
[1751284337150,19.21475956,150.85,150.8,10.93381913]
[1751284338366,19.21475956,150.85,150.8,94.58481913]
[1751284341394,4.60289691,150.84,150.8,94.58481913]
[1751284344279,11.23245312,150.84,150.8,94.58481913]
[1751284345168,4.60289691,150.83,150.8,83.651]
[1751284345374,4.60289691,150.82,150.78,89.251]
[1751284345690,4.60289691,150.82,150.78,83.651]
[1751284345691,4.60289691,150.8,150.78,83.651]
[1751284347168,12.8074704,150.81,150.78,83.651]
[1751284350285,12.8074704,150.81,150.77,11.23545334]
[1751284354193,12.8074704,150.81,150.76,6.63305916]
[1751284354368,12.8074704,150.81,150.76,11.23595607]
[1751284356288,12.8074704,150.81,150.76,94.88695607]
[1751284357788,11.152091,150.81,150.76,93.23157667]
[1751284358991,2.94751751,150.8,150.76,86.59851751]
[1751284359165,2.94751751,150.8,150.76,93.23155074]
[1751284359366,11.152091,150.81,150.76,93.23155074]
[1751284359586,11.152091,150.81,150.76,86.59851751]
[1751284361788,6.6317395,150.79,150.76,86.59851751]
[1751284362092,6.6317395,150.79,150.76,2.94751751]
[1751284363192,9.57897268,150.8,150.76,2.94751751]
[1751284363393,6.63145517,150.8,150.76,2.94751751]
[1751284365993,6.63145517,150.8,150.76,9.580529]
[1751284366406,6.63145517,150.8,150.77,2.94751751]
[1751284367200,6.63145517,150.8,150.76,6.63301149]
[1751284367386,6.63145517,150.8,150.77,2.94751751]
[1751284381501,9.57897268,150.8,150.76,2.94751751]
[1751284384617,2.94751751,150.79,150.75,86.59851751]
[1751284384822,2.94751751,150.77,150.74,89.251]
[1751284388301,9.57985462,150.78,150.74,98.83244129]
[1751284388613,9.57985462,150.78,150.74,15.18144129]
[1751284389125,9.57985462,150.78,150.74,12.23392378]
[1751284389337,2.94751751,150.77,150.74,5.6]
[1751284389623,9.57985462,150.78,150.74,5.6]
[1751284390103,9.57985462,150.78,150.74,8.54751751]
[1751284390928,9.57985462,150.78,150.74,15.1813959]
[1751284391231,9.57985462,150.78,150.74,12.23387839]
[1751284391400,9.57985462,150.78,150.74,15.1813959]
[1751284393955,6.63233711,150.78,150.74,15.1813959]
[1751284394227,9.57985462,150.78,150.74,15.1813959]
[1751284395737,6.63233711,150.78,150.74,15.1813959]
[1751284395934,9.57985462,150.78,150.74,15.1813959]
[1751284396144,6.91624848,150.79,150.74,15.1813959]
[1751284396334,9.86376599,150.79,150.75,2.94751751]
[1751284401533,6.62973911,150.84,150.78,2.94751751]
[1751284401730,14.56909711,150.85,150.82,2.94751751]
[1751284405238,14.56909711,150.85,150.81,2.94751751]
[1751284406824,17.51661462,150.85,150.75,18.64964886]
[1751284407025,2.94751751,150.82,150.78,2.94751751]
[1751284408111,2.94751751,150.81,150.77,21.59716637]
[1751284408431,2.94751751,150.79,150.75,9.58086353]
[1751284409234,4.58451751,150.8,150.75,9.58086353]
[1751284409614,11.21612009,150.8,150.75,9.58086353]
[1751284409922,12.87469694,150.8,150.75,11.23944038]
[1751284410839,4.60609436,150.79,150.74,16.83987857]
[1751284411217,4.60609436,150.75,150.7,5.6]
[1751284411416,4.60609436,150.75,150.72,30.0]
[1751284411848,0.28432314,150.76,150.72,30.0]
[1751284412046,4.60609436,150.75,150.72,30.0]
[1751284412343,4.60609436,150.73,150.7,5.6]
[1751284412515,4.60609436,150.74,150.7,16.8417275]
[1751284414347,4.60609436,150.75,150.71,4.60609436]
[1751284414640,4.60609436,150.75,150.7,12.23563314]
[1751284414844,4.60609436,150.75,150.71,4.60609436]
[1751284416150,4.60609436,150.75,150.71,11.24106319]
[1751284416736,4.60609436,150.75,150.71,6.63496883]
[1751284417042,4.60609436,150.75,150.71,11.24106319]
[1751284421242,4.60609436,150.75,150.71,6.63496883]
[1751284421430,4.60609436,150.75,150.71,11.24106319]
[1751284425338,4.60609436,150.75,150.71,6.63496883]
[1751284425654,11.23966547,150.75,150.71,6.63496883]
[1751284426050,4.60609436,150.74,150.71,6.63496883]
[1751284427434,4.60609436,150.74,150.7,16.84160065]
[1751284427750,11.24011567,150.74,150.7,12.23550629]
[1751284427948,4.60609436,150.74,150.7,12.23550629]
[1751284428252,4.60609436,150.74,150.7,16.84160065]
[1751284429355,12.86914033,150.75,150.7,16.84160065]
[1751284431854,9.58405499,150.74,150.7,15.1856026]
[1751284432054,9.58405499,150.74,150.7,8.55009631]
[1751284432449,2.95009631,150.71,150.66,0.2]
[1751284432751,2.95009631,150.71,150.67,32.95009631]
[1751284433553,2.95009631,150.71,150.67,39.5870408]
[1751284433851,2.95009631,150.71,150.67,9.5870408]
[1751284435154,9.58524527,150.72,150.67,9.5870408]
[1751284435354,6.91890117,150.73,150.69,2.95009631]
[1751284435758,6.91890117,150.73,150.69,4.60995381]
[1751284437655,11.52885498,150.73,150.69,4.60995381]
[1751284440366,11.52885498,150.73,150.68,4.60995381]
[1751284440367,4.60995381,150.72,150.68,4.60995381]
[1751284441470,4.60995381,150.72,150.68,11.2465339]
[1751284441769,11.24488152,150.72,150.68,4.60995381]
[1751284442666,11.24488152,150.72,150.68,11.24641256]
[1751284443251,4.60995381,150.72,150.68,11.24641256]
[1751284444065,4.60995381,150.72,150.68,6.63645875]
[1751284444270,4.60995381,150.72,150.68,11.24641256]
[1751284446274,4.60995381,150.72,150.68,6.63645875]
[1751284446568,4.60995381,150.72,150.68,11.24641256]
[1751284446972,11.24488398,150.72,150.68,4.60995381]
[1751284447158,4.60995381,150.7,150.66,11.44721144]
[1751284447474,4.60995381,150.7,150.66,41.44721144]
[1751284447772,11.24571569,150.7,150.66,41.44721144]
[1751284448372,11.24571569,150.7,150.66,34.80995381]
[1751284448547,11.24571569,150.7,150.66,4.80995381]
[1751284449066,4.60995381,150.69,150.66,0.2]
[1751284449783,11.2462317,150.69,150.66,0.2]
[1751284451667,6.63627789,150.69,150.66,0.2]
[1751284453993,6.63627789,150.69,150.66,4.80995381]
[1751284455388,6.63627789,150.69,150.66,0.2]
[1751284455989,6.63627789,150.69,150.66,4.80995381]
[1751284456988,11.2462317,150.69,150.66,0.2]
[1751284457289,6.63627789,150.69,150.66,4.80995381]
[1751284457783,6.63627789,150.69,150.66,3.15182437]
[1751284459987,26.0,150.67,150.66,0.2]
[1751284460866,16.05390226,150.69,150.66,0.2]
[1751284470087,8.27780285,150.71,150.68,2.95182437]
[1751284471884,8.27780285,150.71,150.67,2.95182437]
[1751284474102,6.63550285,150.71,150.67,2.95182437]
[1751284474326,2.95182437,150.7,150.66,0.2]
[1751284474518,2.95182437,150.69,150.66,0.2]
[1751284475187,3.23614751,150.7,150.66,0.2]
[1751284475894,2.95182437,150.69,150.66,0.2]
[1751284476708,6.6370213,150.67,150.66,0.2]
[1751284477392,9.58884567,150.67,150.66,0.2]
[1751284479591,6.6370213,150.67,150.66,0.2]
[1751284480574,11.25049207,150.67,150.66,0.2]
[1751284485599,6.6370213,150.67,150.66,0.2]
[1751284488111,30.61347077,150.68,150.66,0.2]
[1751284488295,6.63671077,150.68,150.66,0.2]
[1751284488904,11.25018154,150.68,150.66,0.2]
[1751284491717,37.25049207,150.67,150.66,0.2]
[1751284494011,37.53481521,150.67,150.66,0.2]
[1751284496298,37.25049207,150.67,150.66,0.2]
[1751284497507,32.6370213,150.67,150.66,0.2]
[1751284497701,37.25049207,150.67,150.66,0.2]
[1751284498006,37.53481521,150.67,150.66,0.2]
[1751284498400,56.18446407,150.67,150.66,0.2]
[1751284498893,37.53481521,150.67,150.66,0.2]
[1751284501816,35.87554994,150.67,150.66,0.2]
[1751284502130,54.5251988,150.67,150.66,0.2]
[1751284503302,26.0,150.62,150.6,0.2]
[1751284503521,0.28432314,150.59,150.51,7.8194]
[1751284503699,54.5271,150.61,150.51,7.8194]
[1751284503700,2.9542055,150.57,150.51,7.8194]
[1751284503903,2.9542055,150.57,150.53,2.9542055]
[1751284504222,9.59607585,150.56,150.51,7.8194]
[1751284504427,2.9542055,150.55,150.51,4.5081055]
[1751284505201,36.51607585,150.56,150.51,4.5081055]
[1751284505402,36.51607585,150.56,150.51,1.5539]
[1751284505720,2.9542055,150.55,150.49,25.29444504]
[1751284505919,4.62065394,150.55,150.51,4.62065394]
[1751284506298,4.62065394,150.54,150.47,6.485]
[1751284506498,4.62065394,150.54,150.5,4.62065394]
[1751284507304,4.62065394,150.54,150.48,18.64964886]
[1751284507499,4.62065394,150.54,150.5,4.62065394]
[1751284507700,4.62065394,150.55,150.51,4.62065394]
[1751284508204,11.26337038,150.55,150.5,4.62065394]
[1751284508809,11.26337038,150.55,150.51,4.62065394]
[1751284509410,38.18269087,150.56,150.49,18.64964886]
[1751284509611,38.18269087,150.56,150.52,4.62065394]
[1751284509810,38.18269087,150.56,150.49,18.64964886]
[1751284510014,38.18269087,150.56,150.49,87.6]
[1751284510015,26.0,150.53,150.49,87.6]
[1751284510315,4.62065394,150.54,150.5,4.62065394]
[1751284511037,4.62065394,150.53,150.49,92.22065394]
[1751284511233,4.62065394,150.54,150.5,4.62065394]
[1751284511943,11.26343,150.54,150.5,4.62065394]
[1751284512544,4.62065394,150.53,150.49,87.6]
[1751284513022,4.62065394,150.53,150.49,92.22065394]
[1751284513544,11.26400872,150.53,150.49,92.22065394]
[1751284513834,11.26400872,150.53,150.49,87.6]
[1751284514056,4.62065394,150.52,150.49,87.6]
[1751284514529,6.64241337,150.55,150.49,94.2449494]
[1751284514738,11.26306731,150.55,150.51,4.62065394]
[1751284514926,11.26306731,150.55,150.49,94.2449494]
[1751284514927,11.26306731,150.55,150.5,4.62065394]
[1751284515312,11.26306731,150.55,150.49,94.2449494]
[1751284515313,11.26306731,150.55,150.51,4.62065394]